Cogmind - Beta 11.1 @@@ ROGUE MODE // 2022.09.29 @ 21:11:03 Player: DuckBoy Result: Destroyed by B-86 Titan with Matter Neutralizer Performance ------------- Evolutions (6) 3000 Regions Visited (19) 3800 Robots Destroyed (312) 1560 Value Destroyed (11669) 11669 Prototype IDs (40) 800 Alien Tech Used (0) 0 Bonus (3452) 3452 TOTAL SCORE: 24281 Bonus ------- High Alert Combat Kills 459 Follower Combat Kills 1624 Entered Garrisons 400 Used RIF Installer 1000 Aligned with FarCom 300 Friendly Fire -331 Cogmind --------- Core Integrity 0/1150 Matter 300/300 Energy 42/100 System Corruption 3% Temperature Cool (9) Movement Core (50) Location -4/Extension Parts ------- > --- POWER (2) -------- (None) > --- PROPULSION (6) --- Gyrokinetic Inverter > --- UTILITY (9) ------ Advanced Coolant Injector Improved Target Analyzer Improved Armor Integrity Analyzer > --- WEAPON (2) ------- (None) > --- INVENTORY (5) ---- Plasma Rifle Thermic Laser HERF Cannon Improved Remote Datajack Power Maul Peak State ------------ > --- POWER ------------ Micro Fission Core Light Antimatter Reactor > --- PROPULSION ------- Antigrav System Gyrokinetic Inverter Improved Antigrav System Improved Antigrav System Improved Antigrav System Improved Antigrav System > --- UTILITY ---------- Improved Heat Sink Advanced Heat Sink Advanced Coolant Injector Advanced Terrain Scanner Improved Target Analyzer Improved Armor Integrity Analyzer Improved Hacking Suite > --- WEAPON ----------- Hypervelocity Mass Driver Great Maul > --- INVENTORY -------- System Restoration Module Thermic Laser HERF Cannon Improved Remote Datajack Power Maul [Rating: 102] Favorites ----------- Power Micro Nuclear Core Engine Improved Deuterium Engine Power Core Micro Nuclear Core Reactor Antimatter Reactor Propulsion Gravmag Array Treads Light Treads Leg Aluminum Leg Wheel Armored Huge Wheel Hover Unit Gravmag Array Flight Unit Flying Fortress v7 Utility Advanced Hacking Suite Device Improved Heat Sink Storage Large Storage Unit Processor Advanced Terrain Scan Processor Hackware Advanced Hacking Suite Protection Improved Light Armor Plating Weapon Force Lance Energy Gun Precision Shock Rifle Energy Cannon Advanced Plasma Cannon Ballistic Gun Precision Assault Rifle Ballistic Cannon Hypervelocity Mass Driver Launcher Precision Rocket Launcher Special Weapon Remote Datajack Impact Weapon Great Maul Slashing Weapon Scythe Piercing Weapon Force Lance Special Melee Weapon Improved Datajack Build | -11 -10 -10 -10 -9 -8 -8 -8 -8 -7 -7 -7 -6 -6 -6 -5 -5 -5 -4 -4 ------- Run | Scr Mat Min Exi Min Mat Gar Mat Gar Fac Was Fac Fac Was Fac Fac Was Fac Fac Ext Slots Evolved 12 | . . . . . 4 . . . 2 . . 2 . . 2 . . 2 . Power 1 | . . . . . . . . . . . . . . . . . . 1 . Propulsion 4 | . . . . . 2 . . . . . . . . . 1 . . 1 . Utility 7 | . . . . . 2 . . . 2 . . 2 . . 1 . . . . Weapon . | . . . . . . . . . . . . . . . . . . . . Parts Attached 441 | 6 1 13 1 . 7 16 1 17 45 4 53 53 10 67 68 6 24 35 14 Power 32 | 1 . 1 . . 1 1 . 4 2 1 3 . . 7 5 . 1 4 1 Engine 11 | 1 . 1 . . 1 . . 2 1 . 1 . . 3 1 . . . . Core 17 | . . . . . . 1 . 2 1 . 1 . . 3 4 . 1 4 . Reactor 4 | . . . . . . . . . . 1 1 . . 1 . . . . 1 Propulsion 74 | 2 1 2 . . 2 8 1 5 2 . 4 3 1 6 15 2 6 9 5 Treads 1 | 1 . . . . . . . . . . . . . . . . . . . Leg 21 | 1 1 2 . . 2 8 1 5 1 . . . . . . . . . . Wheel 1 | . . . . . . . . . . . . . . . . . . 1 . Hover 50 | . . . . . . . . . . . 4 3 1 6 15 2 6 8 5 Flight 1 | . . . . . . . . . 1 . . . . . . . . . . Utility 131 | 1 . 3 1 . 2 2 . 3 12 2 11 17 7 27 17 2 8 11 5 Device 66 | . . 2 . . . 1 . 2 1 2 3 8 4 14 13 2 4 7 3 Storage 7 | 1 . . 1 . . 1 . . . . 1 . 1 1 . . . . 1 Processor 12 | . . . . . 1 . . . 2 . 2 1 . 2 . . 1 2 1 Hackware 35 | . . . . . 1 . . 1 6 . 5 3 2 8 4 . 3 2 . Protection 11 | . . 1 . . . . . . 3 . . 5 . 2 . . . . . Artifact . | . . . . . . . . . . . . . . . . . . . . Weapon 204 | 2 . 7 . . 2 5 . 5 29 1 35 33 2 27 31 2 9 11 3 Energy Gun 25 | 1 . 2 . . 1 3 . 1 3 1 2 3 1 . 4 . 1 2 . Energy Cannon 29 | . . . . . . . . . 5 . 3 8 . 6 2 . 1 4 . Ballistic Gun 47 | 1 . 2 . . 1 1 . 3 8 . 6 4 . 9 7 . 3 2 . Ballistic Cannon 2 | . . . . . . . . . . . . . . 1 . . . 1 . Launcher 16 | . . . . . . . . . 1 . 5 2 . 3 3 1 1 . . Special Weapon 22 | . . 2 . . . . . . 4 . 5 1 1 2 6 . 1 . . Impact Weapon 17 | . . . . . . 1 . . 7 . 4 . . . . . 1 2 2 Slashing Weapon 3 | . . . . . . . . . 1 . 1 . . . . . . . 1 Piercing Weapon 25 | . . . . . . . . . . . 6 4 . 6 7 1 1 . . Special Melee Weapon 18 | . . 1 . . . . . 1 . . 3 11 . . 2 . . . . Unidentified Prototypes 14 | . . . . . 2 . . . 4 . 1 2 . 2 1 . . 2 . Corrupted Parts 4 | . . . . . . 2 . 2 . . . . . . . . . . . System Corruption 5 | . . . . . . 2 . 3 . . . . . . . . . . . Parts Lost 113 | . . 5 . . 2 7 1 7 5 1 2 1 2 14 17 . 14 18 17 Power 14 | . . 1 . . 1 1 1 1 . . 1 . . 2 2 . . 2 2 Propulsion 42 | . . . . . 1 3 . 2 2 . . . 1 3 10 . 5 9 6 Utility 34 | . . 1 . . . . . 1 2 1 1 1 . 9 2 . 5 4 7 Weapon 23 | . . 3 . . . 3 . 3 1 . . . 1 . 3 . 4 3 2 Highest Loss Streak 8 | . . 2 . . 2 2 1 2 2 1 1 1 2 3 6 . 8 8 6 To Critical Strikes 3 | . . . . . . . . . . . . . 1 . 1 . . . 1 Average Slot Usage (%) 84 | . 85 93 97 85 77 94 99 95 77 65 80 85 81 79 90 94 90 87 80 Engine 2 | . 14 13 14 14 9 2 . 2 5 . 3 . . 2 . . . . . Core 3 | . . . . . . 6 9 5 1 5 1 6 6 3 4 5 5 9 5 Leg 4 | . 18 27 28 28 22 33 35 35 4 . . . . . . . . . . Hover 11 | . . . . . . . . . . . 10 13 13 14 21 29 25 22 16 Flight 1 | . . . . . . . . . 5 7 1 . . . . . . . . Device 5 | . . 6 14 14 9 9 9 4 4 1 1 2 14 4 2 5 5 11 21 Storage 6 | . 14 14 14 14 9 9 9 9 7 7 7 6 5 6 5 5 5 3 . Processor 5 | . . . . . 1 9 9 9 11 . . . . 5 5 5 8 9 10 Hackware 25 | . . . . . 8 9 9 11 14 25 35 40 31 28 37 35 26 18 7 Protection 1 | . . 6 . . . . . . 5 . . 1 . 1 . . . . . Energy Gun 2 | . 14 7 11 . 8 7 18 14 1 7 1 . 3 . 2 2 1 1 . Ballistic Gun 3 | . 14 12 14 14 9 5 . 2 5 . 1 . . 3 1 . 4 . . Impact Weapon 1 | . . . . . . 2 . . 3 . . . . . . . . 4 4 Piercing Weapon 2 | . . . . . . . . . . . 5 5 . 2 3 . . . . Special Melee Weapon 1 | . . 1 . . . . . 1 . . 3 4 . . . . . . . Naked Turns . | . . . . . . . . . . . . . . . . . . . . Heaviest Build 50 | 12 12 17 22 17 24 34 34 35 45 44 49 45 42 49 45 36 48 50 49 Greatest Support 70 | 20 20 20 20 20 30 50 50 50 50 50 50 40 40 40 58 40 53 67 70 Greatest Overweight (x) 3 | 1 1 1 1 . 2 1 . . 1 . 2 1 1 1 2 1 1 3 1 Average Overweight (x) . | . . . . . . . . . . . . . . . . . . . . Largest Inventory Capacity 20 | 8 8 8 10 10 10 15 15 15 15 15 20 15 15 15 15 15 15 15 15 Average Capacity 13 | 6 8 8 8 10 10 12 15 15 15 15 15 15 14 15 15 15 15 11 5 Most Carried 15 | 2 7 8 10 10 10 15 15 15 15 15 15 15 15 15 15 15 15 15 5 Average Carried 12 | . 4 7 8 10 9 11 14 14 14 14 14 14 9 12 13 14 13 8 4 Final Capacity 15 | 8 8 8 10 10 10 15 15 15 15 15 15 15 15 15 15 15 15 5 5 Final Carried 15 | 2 7 8 10 10 10 15 14 13 15 15 14 15 5 13 14 15 15 4 5 Class Distribution -------------------- 35% | Wizard-Mutant 21% | Hacker-Mutant 14% | Scavenger-Mutant 6% | Hacker-Scout 5% | Wizard-Scout 5% | Bothacker-Mutant 4% | Mutant 3% | Scavenger-Assassin Dominant Class ---------------- Mutant | -10/Materials Mutant | -10/Mines Scavenger-Mutant | -10/Exiles Scavenger-Mutant | -9/Mines Scavenger-Mutant | -8/Materials Scavenger-Mutant | -8/Garrison Scavenger-Mutant | -8/Materials Scavenger-Mutant | -8/Garrison Hacker-Mutant | -7/Factory Hacker-Mutant | -7/Waste Wizard-Mutant | -7/Factory Wizard-Mutant | -6/Factory Hacker-Mutant | -6/Waste Hacker-Mutant | -6/Factory Wizard-Mutant | -5/Factory Wizard-Mutant | -5/Waste Hacker-Mutant | -5/Factory Hacker-Scout | -4/Factory Scavenger-Assassin | -4/Extension Resources | -11 -10 -10 -10 -9 -8 -8 -8 -8 -7 -7 -7 -6 -6 -6 -5 -5 -5 -4 -4 ----------- Run | Scr Mat Min Exi Min Mat Gar Mat Gar Fac Was Fac Fac Was Fac Fac Was Fac Fac Ext Matter Collected 9338 | 256 23 169 . . 230 327 10 219 1307 114 1014 686 . 1671 1365 . 770 329 848 Remotely . | . . . . . . . . . . . . . . . . . . . . Salvage Created 13464 | . 164 234 . . 753 732 113 557 1431 . 844 808 . 1935 2342 176 1137 966 1272 Parts 709 | . 13 9 . . 37 35 4 43 83 . 42 49 . 128 129 . 72 22 43 Haulers Intercepted 15 | . 1 . . . . . . . 6 . 2 1 . 1 1 . . 1 2 Recyclers Shooed 5 | . . . . . . . . . . . 2 . . 1 1 . 1 . . Parts Field Recycled . | . . . . . . . . . . . . . . . . . . . . Retrieved Matter . | . . . . . . . . . . . . . . . . . . . . Parts Self-Destructed . | . . . . . . . . . . . . . . . . . . . . Prevented . | . . . . . . . . . . . . . . . . . . . . Kills | -11 -10 -10 -10 -9 -8 -8 -8 -8 -7 -7 -7 -6 -6 -6 -5 -5 -5 -4 -4 ------- Run | Scr Mat Min Exi Min Mat Gar Mat Gar Fac Was Fac Fac Was Fac Fac Was Fac Fac Ext Combat Hostiles Destroyed 195 | . 5 8 . . 14 18 . 14 19 . 14 8 . 33 33 1 11 7 10 Melee 23 | . . 1 . . . . . . 1 . 6 2 . 2 5 . 2 2 2 Guns 101 | . 5 7 . . 14 17 . 11 15 . . 1 . 10 8 . 9 4 . Cannons 27 | . . . . . . . . . 2 . 1 2 . 9 5 . . . 8 AOE 40 | . . . . . . 1 . 1 . . 7 3 . 11 15 1 . 1 . Classes Destroyed 18 | . 3 1 . . 5 3 . . 2 . . 1 . 1 1 1 . . . Worker 26 | . . . . . . . . . 2 . 1 2 . 7 5 . 6 1 2 Builder 20 | . . . . . . . . . . . . 1 . 6 4 . 4 2 3 Tunneler 6 | . . . . . 1 . . . . . . 1 . 2 1 . . . 1 Hauler 16 | . 1 . . . . . . . 6 . 2 1 . 1 1 . 1 1 2 Recycler 19 | . . . . . 1 . 1 . . . 2 1 . 2 5 . 1 3 3 Operator 5 | . . . . . 1 . . . 1 . 2 . . . 1 . . . . Watcher 25 | . . . . . 3 . 1 . 4 . 3 5 . 3 1 . 2 2 1 Swarmer 67 | . 3 3 . . 7 7 . 7 2 . 6 3 . 13 8 . 6 . 2 Cutter 4 | . . . . . . . . . . . . . . . 4 . . . . Grunt 61 | . 2 4 . . 6 8 . 7 7 . 3 . . 5 10 . 1 3 5 Brawler 6 | . . . . . . 1 . . 2 . . . . 2 1 . . . . Duelist 2 | . . . . . . 1 . . . . . . . 1 . . . . . Sentry 16 | . . . . . 1 . . 1 3 . 1 1 . 4 2 . 2 . 1 Hunter 8 | . . . . . . 1 . . . . . 1 . 2 2 . . . 2 Programmer 29 | . . . . . . . . . 5 . 4 3 . 5 6 . 2 4 . Behemoth 1 | . . . . . . . . . . . . . . 1 . . . . . Compactor 1 | . . . . . . . . . . . . . . . . 1 . . . Assembled 1 | . . 1 . . . . . . . . . . . . . . . . . Best Kill Streak 11 | . 5 2 . . 6 4 2 7 3 . 6 4 . 6 11 1 5 5 3 Combat Bots Only 10 | . 5 2 . . 4 4 . 7 3 . 6 3 . 4 10 1 4 4 2 Max Kills in Single Turn 6 | . 2 1 . . 1 2 1 2 1 . 4 3 . 6 3 1 2 2 2 Gunslinging 1 | . 1 . . . . 1 . 1 . . . . . . . . . . . Exploded 4 | . . . . . . 1 . 1 . . 4 2 . 4 3 1 . 1 . Melee 1 | . . 1 . . . . . . 1 . 1 1 . 1 1 . 1 1 1 Uniques/NPCs Destroyed . | . . . . . . . . . . . . . . . . . . . . Combat | -11 -10 -10 -10 -9 -8 -8 -8 -8 -7 -7 -7 -6 -6 -6 -5 -5 -5 -4 -4 -------- Run | Scr Mat Min Exi Min Mat Gar Mat Gar Fac Was Fac Fac Was Fac Fac Was Fac Fac Ext Damage Taken 15360 | . 106 621 . . 343 887 17 559 1239 69 969 934 92 2252 2101 3 1587 1927 1654 Core 3385 | . 21 67 . . 86 114 . 26 108 . 159 275 57 487 411 2 402 575 595 Absorbed by Shields 206 | . . . . . . . . . 13 . . . . . . . . 79 114 Regen/Repaired (Parts) 1158 | . . . . . . . . . 205 . 120 274 . 269 150 . 140 . . Core Remaining (%) 50 | 100 . . . 64 . . . 58 . . 61 . . 3 . . 18 . . Volleys Fired 1297 | . 13 61 . . 40 48 4 36 143 140 70 60 9 321 134 27 87 19 85 Largest 2 | . 2 2 . . 2 2 2 2 2 1 2 2 1 2 2 1 2 2 1 Hottest 162 | . 60 120 . . 83 110 110 111 103 55 103 126 55 128 123 65 100 162 66 Shots Fired 1523 | . 26 77 . . 80 89 8 63 164 133 77 61 9 334 151 27 110 28 86 Gun 1166 | . 26 62 . . 80 89 8 63 146 126 43 22 2 252 114 15 102 16 . Cannon 247 | . . . . . . . . . 4 . 18 30 . 77 14 . 6 12 86 Launcher 39 | . . . . . . . . . . . 6 3 . 3 14 12 1 . . Special 71 | . . 15 . . . . . . 14 7 10 6 7 2 9 . 1 . . Kinetic 828 | . 13 48 . . 40 42 . 7 134 . 8 7 . 252 95 . 91 5 86 Thermal 214 | . 13 29 . . . . . 6 16 . 12 30 . 77 14 . 6 11 . Explosive 37 | . . . . . . . . . . . 6 3 . 3 13 12 . . . Electromagnetic 388 | . . . . . 40 47 8 50 . 126 41 15 2 . 20 15 12 12 . Robot Hit Streak 24 | . 12 6 . . 13 17 18 16 21 18 11 12 9 24 7 11 9 7 8 Robot Miss Streak 6 | . 6 3 . . 1 2 1 4 3 4 3 2 . 4 5 1 4 3 3 Penetration Max 2 | . . . . . . . . . . . . . . 1 2 . 2 . 1 Secondary Targets 12 | . 2 . . . 4 3 . 3 . . . . . . . . . . . Max Gunslinging Chain 1 | . 1 . . . 1 1 . 1 . . . . . . . . . . . Shots Hit Robots 1216 | . 17 37 . . 61 63 6 40 141 108 87 91 9 250 118 24 84 29 51 Core Hits 472 | . 9 18 . . 27 29 2 21 49 11 30 19 . 74 84 14 39 22 24 Critical Kills 34 | . . . . . . . . . 2 . . . . 2 6 . 7 1 16 Critical Parts Destroyed 66 | . . . . . . . . . 2 . . . . 2 17 . 15 4 26 Critical Strikes 126 | . . 1 . . . 1 . . 5 . 4 . . 8 26 . 28 6 47 Burn 3 | . . 1 . . . . . . 1 . . . . . . . . 1 . Meltdown 1 | . . . . . . . . . . . . . . 1 . . . . . Destroy 101 | . . . . . . . . . 2 . . . . 3 24 . 25 2 45 Corrupt 1 | . . . . . . 1 . . . . . . . . . . . . . Smash 7 | . . . . . . . . . 2 . . . . . . . . 3 2 Impale 13 | . . . . . . . . . . . 4 . . 4 2 . 3 . . Melee Attacks 564 | . . . . . . 12 . 2 77 . 114 114 . 38 96 . 38 60 13 Impact 173 | . . . . . . 12 . . 59 . 19 . . . . . 10 60 13 Slashing 18 | . . . . . . . . . 18 . . . . . . . . . . Piercing 323 | . . . . . . . . . . . 76 86 . 38 95 . 28 . . Sneak Attacks 101 | . . . . . . . . . 4 . 23 33 . 8 14 . 8 8 3 Combat Hostiles . | . . . . . . . . . . . . . . . . . . . . Follow-up Attacks . | . . . . . . . . . . . . . . . . . . . . Damage Inflicted 34050 | . 167 414 . . 1314 1388 149 1040 2632 63 2544 2588 2 6977 5211 3864 1818 2272 1607 Guns 10519 | . 167 387 . . 1257 1238 149 755 1874 63 438 228 2 2213 585 15 710 438 . Cannons 4709 | . . . . . . . . . 87 . 169 920 . 1645 403 . 187 172 1126 Explosions 10870 | . . . . . 57 150 . 285 . . 780 437 . 1939 2631 3849 89 653 . Melee 7839 | . . . . . . . . . 671 . 1157 1003 . 1144 1592 . 791 1009 472 Ramming 89 | . . 3 . . . . . . . . . . . 36 . . 41 . 9 Kinetic 7759 | . 59 253 . . 506 530 . 116 1729 . 142 67 . 2213 390 . 594 34 1126 Thermal 6733 | . 108 158 . . 57 150 . 357 232 . 75 953 . 2928 959 81 271 404 . Explosive 8129 | . . . . . . . . . . . 780 404 . 656 1868 3768 . 653 . Electromagnetic 3501 | . . . . . 751 708 149 567 . 63 390 161 2 . 402 15 121 172 . Impact 1708 | . . . . . . . . . 227 . . . . . . . . 1009 472 Slashing 444 | . . . . . . . . . 444 . . . . . . . . . . Piercing 5687 | . . . . . . . . . . . 1157 1003 . 1144 1592 . 791 . . Highest Corruption 37 | . . . . . . 2 2 5 17 19 20 2 . 5 6 15 37 5 5 Average Corruption 12 | . . . . . . 1 2 4 11 18 18 1 . 3 2 7 30 3 4 Corruption Purged 29 | . . . . . . . . . . . 5 3 . 5 9 . 4 1 2 Corruption Blocked . | . . . . . . . . . . . . . . . . . . . . Effects 563 | . . . . . . 4 3 15 126 47 182 3 . 29 9 5 87 18 35 Message Errors 131 | . . . . . . 1 . 4 35 8 43 . . 3 2 . 22 5 8 Matter Fused 134 | . . . . . . 2 . 4 35 9 47 . . 2 2 2 16 5 10 Heat Flow Errors 58 | . . . . . . . 1 4 11 1 14 1 . 8 1 . 10 1 6 Energy Discharges 68 | . . . . . . 1 . 1 7 3 32 1 . 5 . 2 8 4 4 Parts Rejected 4 | . . . . . . . 1 . 2 . 1 . . . . . . . . Data Loss (minor) 70 | . . . . . . . . . 17 3 21 1 . 6 4 . 14 2 2 Data Loss (major) 29 | . . . . . . . 1 . 4 4 9 . . 1 . 1 7 . 2 Misfires 20 | . . . . . . . . 1 3 3 6 . . 2 . . 2 1 2 Alerts 11 | . . . . . . . . . 4 1 2 . . 1 . . 3 . . Misdirections 15 | . . . . . . . . . 3 5 5 . . . . . 2 . . Weapon Failures 23 | . . . . . . . . 1 5 10 2 . . 1 . . 3 . 1 Overload Shots 11 | . . . . . . . . . . . . . . . . . . 11 . Effects 2 | . . . . . . . . . . . . . . . . . . 2 . Energy Bleed 1 | . . . . . . . . . . . . . . . . . . 1 . Short Circuit 1 | . . . . . . . . . . . . . . . . . . 1 . Overflow Damage 2974 | . . . . . . 73 . 17 114 . 441 321 . 392 486 2 369 513 246 Projectiles 175 | . . . . . . . . . . . . 86 . 73 3 . 13 . . Explosions 454 | . . . . . . 73 . 17 . . 23 12 . 132 117 2 78 . . Melee 2345 | . . . . . . . . . 114 . 418 223 . 187 366 . 278 513 246 Knockbacks 10 | . . . . . . . . . . . . . . . . . . 4 6 Impact 6 | . . . . . . . . . . . . . . . . . . 4 2 Kinetic 4 | . . . . . . . . . . . . . . . . . . . 4 Secondary . | . . . . . . . . . . . . . . . . . . . . Self-Inflicted Damage 723 | . . . . . . 295 . 54 . . 50 . . 44 245 5 26 . 4 Shots 12 | . . . . . . 2 . 1 . . 1 . . 1 5 1 1 . . Rammed 8 | . . . . . . . . . . . . . . 1 . . 5 . 2 Targets Rammed 9 | . . 1 . . . . . . . . . . . 1 . . 5 . 2 Kicked 1 | . . 1 . . . . . . . . . . . . . . . . . Crushed . | . . . . . . . . . . . . . . . . . . . . Highest Temperature 350 | . 64 221 . . 28 16 68 305 315 258 278 350 4 348 178 72 282 333 168 Average Temperature 94 | . 22 78 . . 20 10 51 73 94 75 77 104 2 93 29 25 92 144 40 Received Heat Transfer 2173 | . 36 430 . . 180 180 9 243 159 . 147 105 . 324 54 . 90 162 54 Effects 12 | . . . . . . . . . . 2 1 . . 4 . . . 5 . Shutdowns 1 | . . . . . . . . . . . . . . . . . . 1 . Energy Bleed 3 | . . . . . . . . . . . . . . 2 . . . 1 . Interference 8 | . . . . . . . . . . 2 1 . . 2 . . . 3 . Siege Activations . | . . . . . . . . . . . . . . . . . . . . Robots Corrupted 3 | . . . . . . . . 2 . . . . . . . . 1 . . Combat Hostiles 2 | . . . . . . . . 2 . . . . . . . . . . . Parts Fried 30 | . . . . . 2 1 2 1 2 . 1 . . . 1 . 1 15 4 Impact Corruptions 25 | . . . . . . . . . 3 . . . . . . . 1 13 8 Robots Melted 2 | . . . . . . . . . . . . . . 2 . . . . . Combat Hostiles 1 | . . . . . . . . . . . . . . 1 . . . . . Parts Melted 10 | . . 1 . . . . . . . . 2 2 . 4 . . . 1 . Heat Transferred 8173 | . 250 398 . . 100 100 . 471 555 . 111 1250 . 3100 870 50 198 720 . Parts Sabotaged . | . . . . . . . . . . . . . . . . . . . . Parts Stolen . | . . . . . . . . . . . . . . . . . . . . Parts Stripped . | . . . . . . . . . . . . . . . . . . . . Power Chain Reactions 11 | . . . . . 1 2 . 3 . . . 1 . . 3 1 . . . Missiles Intercepted . | . . . . . . . . . . . . . . . . . . . . Alert | -11 -10 -10 -10 -9 -8 -8 -8 -8 -7 -7 -7 -6 -6 -6 -5 -5 -5 -4 -4 ------- Run | Scr Mat Min Exi Min Mat Gar Mat Gar Fac Was Fac Fac Was Fac Fac Was Fac Fac Ext Peak Influence 1096 | . 169 165 . . 207 1096 561 761 509 117 502 425 163 616 621 329 422 277 490 Initial 534 | . . 65 . . . 108 534 358 399 117 . 144 148 100 292 207 230 111 115 Average 247 | . 75 84 . . 103 661 543 614 264 45 262 106 146 269 249 260 212 144 259 Maximum Alert Level 3 | . . . . . 1 3 2 3 2 . 2 2 . 2 2 1 2 1 2 Low Security (%) 44 | 100 100 100 . 100 81 1 . . 39 100 28 88 100 23 31 . 41 82 39 Level 1 42 | . . . . . 18 22 . 10 46 . 68 9 . 64 53 100 58 17 47 Level 2 9 | . . . . . . 16 100 75 13 . 3 1 . 11 14 . . . 12 Level 3 3 | . . . . . . 58 . 14 . . . . . . . . . . . Level 4 . | . . . . . . . . . . . . . . . . . . . . Level 5 . | . . . . . . . . . . . . . . . . . . . . High Security . | . . . . . . . . . . . . . . . . . . . . Max Security . | . . . . . . . . . . . . . . . . . . . . Squads Dispatched 107 | . 1 . . . 1 . . . 21 . 19 14 . 17 19 . 7 5 3 Investigation 47 | . 1 . . . . . . . 10 . 8 5 . 8 6 . 5 2 2 Extermination 25 | . . . . . . . . . 5 . 4 4 . 4 4 . 2 2 . Reinforcement 28 | . . . . . 1 . . . 3 . 7 4 . 5 6 . . 1 1 Assault 3 | . . . . . . . . . 1 . . 1 . . 1 . . . . Garrison 4 | . . . . . . . . . 2 . . . . . 2 . . . . Intercept . | . . . . . . . . . . . . . . . . . . . . Searches Triggered . | . . . . . . . . . . . . . . . . . . . . Construction Impeded 6 | . . . . . . . . . 1 . . . . 2 2 . . . 1 Haulers Reinforced 3 | . . . . . . . . . . . 1 2 . . . . . . . Active Scanning Responses . | . . . . . . . . . . . . . . . . . . . . Cargo Convoy Interrupts 1 | . . . . . . . . . . . . . . 1 . . . . . Stealth | -11 -10 -10 -10 -9 -8 -8 -8 -8 -7 -7 -7 -6 -6 -6 -5 -5 -5 -4 -4 --------- Run | Scr Mat Min Exi Min Mat Gar Mat Gar Fac Was Fac Fac Was Fac Fac Was Fac Fac Ext Distress Signals 16 | . . . . . 1 . . . 1 . 3 5 . 1 2 . 1 2 . Communications Jammed 1 | . . . . . . . . . . . . . . . . . . 1 . Distress Signals 1 | . . . . . . . . . . . . . . . . . . 1 . Times Spotted 425 | . 8 12 . . 19 19 4 15 46 6 49 34 6 55 55 5 33 30 29 Peak Tracking Total 8 | . 6 3 . . 6 5 2 4 4 3 7 4 3 6 6 5 8 8 6 Tactical Retreats 62 | . 1 2 . . 1 4 . . 3 . 4 4 . 11 6 1 4 12 9 Traps | -11 -10 -10 -10 -9 -8 -8 -8 -8 -7 -7 -7 -6 -6 -6 -5 -5 -5 -4 -4 ------- Run | Scr Mat Min Exi Min Mat Gar Mat Gar Fac Was Fac Fac Was Fac Fac Was Fac Fac Ext Traps Triggered 39 | . . 1 . . . 4 . 1 5 . 3 7 . 6 2 . 2 1 7 Indirectly . | . . . . . . . . . . . . . . . . . . . . Trap Hack Attempts 193 | . . 15 . . . . . . . . 65 111 . . 2 . . . . Triggered 3 | . . . . . . . . . . . 2 1 . . . . . . . Disarmed 3 | . . . . . . . . . . . . 3 . . . . . . . Reprogrammed 56 | . . 2 . . . . . . . . 20 33 . . 1 . . . . Reused 20 | . . . . . . . . . . . 3 16 . . 1 . . . . Traps Extracted . | . . . . . . . . . . . . . . . . . . . . Installed . | . . . . . . . . . . . . . . . . . . . . Triggered 23 | . . . . . . . . 1 . . 3 17 . 1 1 . . . . Exploded 1 | . . . . . . . . . . . . 1 . . . . . . . Machines | -11 -10 -10 -10 -9 -8 -8 -8 -8 -7 -7 -7 -6 -6 -6 -5 -5 -5 -4 -4 ---------- Run | Scr Mat Min Exi Min Mat Gar Mat Gar Fac Was Fac Fac Was Fac Fac Was Fac Fac Ext Machines Disabled 76 | . . . . . . 6 . 2 6 . 2 1 . 21 24 . 9 4 1 Max in Single Turn 14 | . . . . . . 2 . 1 1 . 1 1 . 14 7 . 4 2 . Garrison Access 22 | . . . . . . . . . 4 . 4 2 . 3 4 . 2 3 . Garrison Relay 4 | . . . . . . 2 . 2 . . . . . . . . . . . Phase Generator 1 | . . . . . . 1 . . . . . . . . . . . . . Machines Sabotaged . | . . . . . . . . . . . . . . . . . . . . Garrisons Compromised 1 | . . . . . . . . . . . . . . 1 . . . . . Overloaded Fab Kills . | . . . . . . . . . . . . . . . . . . . . Hacking | -11 -10 -10 -10 -9 -8 -8 -8 -8 -7 -7 -7 -6 -6 -6 -5 -5 -5 -4 -4 --------- Run | Scr Mat Min Exi Min Mat Gar Mat Gar Fac Was Fac Fac Was Fac Fac Was Fac Fac Ext Machines Accessed 166 | . 1 1 1 . 3 . 1 . 29 . 31 23 . 23 28 . 13 10 2 Terminals 74 | . 1 . . . 2 . . . 17 . 14 11 . 7 12 . 5 3 2 Fabricators 29 | . . . . . . . . . 5 . 6 3 . 6 5 . 2 2 . Repair Stations 13 | . . . . . . . . . 1 . 2 3 . 3 2 . 1 1 . Recycling Units 17 | . . . . . . . . . 2 . 3 2 . 4 3 . 2 1 . Scanalyzers 8 | . . . . . . . . . . . 2 2 . . 3 . 1 . . Garrison Access 23 | . . . . . 1 . 1 . 4 . 4 2 . 3 3 . 2 3 . Total Hacks 539 | . 4 1 1 . 11 . 1 . 79 . 98 112 . 67 107 . 29 25 4 Successful 382 | . 1 1 1 . 4 . 1 . 49 . 70 80 . 53 83 . 17 20 2 Failed 156 | . 3 . . . 7 . . . 29 . 28 32 . 14 24 . 12 5 2 Catastrophic 27 | . . . . . . . . . 7 . 7 2 . 3 6 . 2 . . Database Lockouts 1 | . . . . . . . . . 1 . . . . . . . . . . Manual 223 | . 4 . 1 . 10 . . . 35 . 43 51 . 27 45 . 3 4 . Terminals 289 | . 4 . . . 10 . . . 50 . 49 68 . 26 58 . 12 8 4 Fabricators 80 | . . . . . . . . . 13 . 20 11 . 16 12 . 4 4 . Repair Stations 31 | . . . . . . . . . 2 . 6 7 . 8 4 . 2 2 . Recycling Units 57 | . . . . . . . . . 6 . 7 8 . 12 15 . 4 5 . Scanalyzers 37 | . . . . . . . . . . . 7 15 . . 12 . 3 . . Garrison Access 43 | . . . . . 1 . 1 . 8 . 9 3 . 5 6 . 4 6 . Terminal Hacks 141 | . 1 1 1 . 1 . . . 18 . 25 38 . 12 31 . 5 6 2 Record 4 | . . . . . . . . . . . . 1 . . 2 . . 1 . Part Schematic 38 | . 1 . . . . . . . 6 . 5 11 . 3 10 . . 2 . Robot Schematic 13 | . . . . . . . . . 2 . 6 1 . 1 3 . . . . Robot Analysis 10 | . . . . . . . . . . . . 7 . 2 1 . . . . Open Door 3 | . . 1 . . . . . . . . . . . . . . . . 2 Open DSF 2 | . . . . . . . . . 1 . . . . . 1 . . . . Level Access Points 2 | . . . . . . . . . . . . 1 . . 1 . . . . Branch Access Points 4 | . . . . . . . . . 1 . 1 . . 1 1 . . . . Emergency Access Points 1 | . . . . . . . . . . . . 1 . . . . . . . Machine Index 3 | . . . . . . . . . . . 1 1 . . 1 . . . . Terminal Index 4 | . . . . . . . . . 1 . . 1 . . . . 1 1 . Fabricator Index 1 | . . . . . . . . . . . . . . . . . . 1 . Recycling Unit Index 1 | . . . . . . . . . . . . . . . . . 1 . . Garrison Index 2 | . . . . . . . . . 1 . . 1 . . . . . . . Unreport Threat 17 | . . . . . 1 . . . 2 . 3 1 . 3 6 . 1 . . Locate Traps 6 | . . . . . . . . . 2 . 2 2 . . . . . . . Dispatch Records 1 | . . . . . . . . . . . . . . . 1 . . . . Patrol Status 1 | . . . . . . . . . . . . 1 . . . . . . . Transport Status 1 | . . . . . . . . . . . . 1 . . . . . . . Recall Investigation 11 | . . . . . . . . . 1 . 5 2 . 2 1 . . . . Recall Extermination 3 | . . . . . . . . . . . . . . . 2 . 1 . . Recall Reinforcements 2 | . . . . . . . . . . . . 1 . . 1 . . . . Hauler Manifests 2 | . . . . . . . . . 1 . . . . . . . . 1 . Registered Components 2 | . . . . . . . . . . . . 2 . . . . . . . Registered Prototypes 1 | . . . . . . . . . . . . 1 . . . . . . . Zone Layout 5 | . . . . . . . . . . . 2 2 . . . . 1 . . EX-Prototype ID Bank 1 | . . . 1 . . . . . . . . . . . . . . . . Fabricator Hacks 60 | . . . . . . . . . 12 . 14 7 . 13 9 . 2 3 . Network Status 6 | . . . . . . . . . 2 . 1 1 . 1 1 . . . . Load Schematic 26 | . . . . . . . . . 5 . 6 3 . 6 4 . 1 1 . Build 28 | . . . . . . . . . 5 . 7 3 . 6 4 . 1 2 . Repair Station Hacks 26 | . . . . . . . . . 2 . 5 6 . 7 4 . 2 . . Scan Component 13 | . . . . . . . . . 1 . 3 3 . 3 2 . 1 . . Repair 12 | . . . . . . . . . 1 . 2 3 . 3 2 . 1 . . Refit 1 | . . . . . . . . . . . . . . 1 . . . . . Recycling Unit Hacks 13 | . . . . . . . . . 1 . 2 1 . 1 3 . 4 1 . Process 2 | . . . . . . . . . . . . . . . . . 2 . . Report Inventory 1 | . . . . . . . . . . . 1 . . . . . . . . Retrieve Matter 3 | . . . . . . . . . . . . . . . 1 . 2 . . Retrieve Components 7 | . . . . . . . . . 1 . 1 1 . 1 2 . . 1 . Scanalyzer 31 | . . . . . . . . . . . 6 13 . . 12 . . . . Insert Component 16 | . . . . . . . . . . . 3 7 . . 6 . . . . Analyze 15 | . . . . . . . . . . . 3 6 . . 6 . . . . Garrison Access Hacks 40 | . . . . . 1 . 1 . 7 . 7 3 . 5 6 . 4 6 . Unlock Access 2 | . . . . . 1 . 1 . . . . . . . . . . . . Seal Access 19 | . . . . . . . . . 3 . 4 1 . 3 3 . 2 3 . Coupler Status 19 | . . . . . . . . . 4 . 3 2 . 2 3 . 2 3 . Unauthorized Hacks 71 | . . . . . 2 . . . 9 . 11 12 . 15 18 . . 4 . Terminals 31 | . . . . . 2 . . . 4 . 4 5 . 5 10 . . 1 . Track 1 | . . . . . . . . . . . . . . . 1 . . . . Assimilate 13 | . . . . . . . . . 2 . 3 1 . 3 4 . . . . Botnet 13 | . . . . . 2 . . . 2 . . 3 . 1 4 . . 1 . Operators 4 | . . . . . . . . . . . 1 1 . 1 1 . . . . Fabricators 2 | . . . . . . . . . . . 1 1 . . . . . . . Report 2 | . . . . . . . . . . . 1 1 . . . . . . . Repair Stations . | . . . . . . . . . . . . . . . . . . . . Recycling Units 36 | . . . . . . . . . 4 . 5 6 . 10 8 . . 3 . Reject 10 | . . . . . . . . . 1 . . 2 . 3 3 . . 1 . Recyclers 11 | . . . . . . . . . 1 . 2 2 . 3 2 . . 1 . Mask 15 | . . . . . . . . . 2 . 3 2 . 4 3 . . 1 . Scanalyzers . | . . . . . . . . . . . . . . . . . . . . Garrison Access 2 | . . . . . . . . . 1 . 1 . . . . . . . . Reprogram 1 | . . . . . . . . . 1 . . . . . . . . . . Watchers 1 | . . . . . . . . . . . 1 . . . . . . . . Data Cores Recovered 1 | . . . . . . . . . . . . 1 . . . . . . . Used 1 | . . . . . . . . . . . . 1 . . . . . . . Hacking Detections 125 | . 1 . . . 2 . . . 24 . 24 16 . 18 21 . 10 8 1 Full Trace Events 41 | . 1 . . . . . . . 9 . 8 4 . 8 6 . 3 1 1 Feedback Events 8 | . . . . . . . . . 1 . 1 2 . 2 1 . 1 . . Corruption 5 | . . . . . . . . . 1 . . 1 . 1 1 . 1 . . Hackware Fried 3 | . . . . . . . . . . . 1 1 . 1 . . . . . Feedback Blocked . | . . . . . . . . . . . . . . . . . . . . Robot Schematics Acquired 11 | . . . . . . . . . 2 . 6 1 . 1 1 . . . . Robots Built 16 | . . . . . . . . . 2 . 4 1 . . 8 . . 1 . Authchips . | . . . . . . . . . . . . . . . . . . . . Time 1021 | . . . . . . . . . 134 . 264 38 . . 393 . 116 76 . Total Robot Build Rating 76 | . . . . . . . . . 8 . 12 3 . . 48 . . 5 . Part Schematics Acquired 52 | . 1 . . . . . . . 6 . 8 16 . 3 16 . . 2 . Parts Built 20 | . . . . . . . . . 4 . 6 3 . 6 . . . 1 . Authchips . | . . . . . . . . . . . . . . . . . . . . Time 1074 | . . . . . . . . . 265 . 221 106 . 429 . . . 53 . Total Part Build Rating 122 | . . . . . . . . . 24 . 37 18 . 37 . . . 6 . Parts Repaired 12 | . . . . . . . . . 1 . 2 3 . 3 2 . 1 . . Time 435 | . . . . . . . . . 44 . 63 83 . 103 47 . 95 . . Parts Recycled . | . . . . . . . . . . . . . . . . . . . . Recycled Matter 212 | . . . . . . . . . . . . . . . . . 212 . . Retrieved Matter 413 | . . . . . . . . . . . . . . . 124 . 289 . . Retrieved Components 17 | . . . . . . . . . . . . 1 . 10 4 . . 2 . Parts Scanalyzed 15 | . . . . . . . . . . . 3 6 . . 6 . . . . Part Schematics Acquired 14 | . . . . . . . . . . . 3 5 . . 6 . . . . Parts Damaged . | . . . . . . . . . . . . . . . . . . . . Bothacking | -11 -10 -10 -10 -9 -8 -8 -8 -8 -7 -7 -7 -6 -6 -6 -5 -5 -5 -4 -4 ------------ Run | Scr Mat Min Exi Min Mat Gar Mat Gar Fac Was Fac Fac Was Fac Fac Was Fac Fac Ext Used RIF Installer 2 | . . . . . . 1 . 1 . . . . . . . . . . . Hotswap 1 | . . . . . . . . 1 . . . . . . . . . . . Robots Hacked 68 | . . . . . . . . 1 8 5 17 20 6 2 8 . 1 . . Non-combat 51 | . . . . . . . . . 7 . 15 19 . 2 8 . . . . Combat 17 | . . . . . . . . 1 1 5 2 1 6 . . . 1 . . Robot Hacks Applied 92 | . . . . . . . . 1 12 6 23 31 6 2 10 . 1 . . parse_system 3 | . . . . . . . . . . 1 2 . . . . . . . . no_distress 43 | . . . . . . . . . 3 . 14 18 . 2 6 . . . . find_chute 6 | . . . . . . . . . 2 . . 3 . . 1 . . . . ignore_repairs 5 | . . . . . . . . . . . 1 4 . . . . . . . find_fabricator 3 | . . . . . . . . . . . . 3 . . . . . . . find_dsf 1 | . . . . . . . . . . . . 1 . . . . . . . find_recycling 5 | . . . . . . . . . 1 . 2 1 . . 1 . . . . ignore_parts 1 | . . . . . . . . . . . 1 . . . . . . . . check_alert 3 | . . . . . . . . . 1 . 1 . . . 1 . . . . purge_threat 4 | . . . . . . . . . 3 . . . . . 1 . . . . recall_investigation 1 | . . . . . . . . . 1 . . . . . . . . . . ignore_targets 11 | . . . . . . . . . . 5 . . 6 . . . . . . reboot_system 1 | . . . . . . . . . . . 1 . . . . . . . . formatsys_high 5 | . . . . . . . . 1 1 . 1 1 . . . . 1 . . Relay Couplers Released 35 | . . . . . . 7 . 8 3 . 2 3 . 3 3 . 3 3 . Machine Destruction 32 | . . . . . . 7 . 8 3 . 2 3 . . 3 . 3 3 . Programmers 3 | . . . . . . . . . . . . . . 3 . . . . . Attached 10 | . . . . . . . . 1 2 . 1 1 2 . 1 . 1 1 . Fabnet Peak Effective % . | . . . . . . . . . . . . . . . . . . . . Robots Rewired 11 | . . . . . . . . . . . 1 1 . . 1 . 1 . 7 Allies Hacked 6 | . . . . . . . . . 1 3 . . . 1 1 . . . . Hacks Repelled . | . . . . . . . . . . . . . . . . . . . . Allies | -11 -10 -10 -10 -9 -8 -8 -8 -8 -7 -7 -7 -6 -6 -6 -5 -5 -5 -4 -4 -------- Run | Scr Mat Min Exi Min Mat Gar Mat Gar Fac Was Fac Fac Was Fac Fac Was Fac Fac Ext Total Allies 85 | . . . . . . . . 1 11 23 9 7 . 6 14 . 2 1 11 Largest Group 21 | . . . . . . . . 1 4 21 21 6 . 2 5 . 1 1 5 Highest-Rated Group 747 | . . . . . . . . 15 103 747 747 225 . 52 144 . 49 19 218 Highest-Rated Ally 141 | . . . . . . . . 15 37 141 141 141 . 31 54 . 49 19 51 Total Orders 64 | . . . . . . . . . 2 8 20 12 . 3 16 . 1 . 2 STAY 37 | . . . . . . . . . 2 5 9 6 . 2 12 . . . 1 ROAM 1 | . . . . . . . . . . . . . . . . . . . 1 FOLLOW 15 | . . . . . . . . . . 1 8 3 . . 3 . . . . AID 5 | . . . . . . . . . . 2 . 3 . . . . . . . DROP 3 | . . . . . . . . . . . 1 . . . 1 . 1 . . PICKUP 2 | . . . . . . . . . . . 2 . . . . . . . . EXPLORE 1 | . . . . . . . . . . . . . . 1 . . . . . Ally Attacks 485 | . . . . . . . . 5 60 162 119 20 . 4 11 . 13 . 91 Total Damage 11429 | . . . . . . . . 110 1406 3048 2653 350 . 70 1167 . 421 . 2204 Kills 71 | . . . . . . . . 1 12 5 29 1 . . 6 . 5 . 12 Allies Corrupted 1 | . . . . . . . . . . . . . . . . . 1 . . Allies Melted 1 | . . . . . . . . . . . 1 . . . . . . . . Intel | -11 -10 -10 -10 -9 -8 -8 -8 -8 -7 -7 -7 -6 -6 -6 -5 -5 -5 -4 -4 ------- Run | Scr Mat Min Exi Min Mat Gar Mat Gar Fac Was Fac Fac Was Fac Fac Was Fac Fac Ext Robot Analysis Total 10 | . . . . . . . . . . . . 7 . 2 1 . . . . Derelict Logs Recovered 3 | . . 3 . . . . . . . . . . . . . . . . . Drone Launches 1 | . . . . . . . . . . . . . . 1 . . . . . Drone Recoveries 1 | . . . . . . . . . . . . . . 1 . . . . . Exploration | -11 -10 -10 -10 -9 -8 -8 -8 -8 -7 -7 -7 -6 -6 -6 -5 -5 -5 -4 -4 ------------- Run | Scr Mat Min Exi Min Mat Gar Mat Gar Fac Was Fac Fac Was Fac Fac Was Fac Fac Ext Turns Passed 28682 | 78 187 788 345 75 505 1299 161 711 3776 719 4130 3145 208 4244 3735 222 1712 1411 1231 Spaces Moved 30665 | 45 84 465 280 63 262 844 114 420 4833 651 5429 3604 257 4661 4556 259 1659 1397 782 Core 27 | 4 . . . . . . . . . . . . . . . . . . 23 Treads 13 | 2 11 . . . . . . . . . . . . . . . . . . Legs 2932 | 39 73 465 280 63 262 844 114 420 372 . . . . . . . . . . Wheels 9 | . . . . . . . . . . . . . . . . . . 9 . Hover 21025 | . . . . . . . . . . . 3882 3604 257 4661 4556 259 1659 1388 759 Flight 6659 | . . . . . . . . . 4461 651 1547 . . . . . . . . Fastest Speed 41 | 50 120 120 120 120 120 120 120 120 50 50 50 56 56 52 48 48 46 46 41 Average Speed 64 | 148 161 120 121 120 133 121 120 120 57 50 54 57 57 59 56 49 64 56 109 Slowest Speed 260 | 190 190 190 190 120 260 190 120 120 190 50 160 106 106 106 160 112 116 250 128 Overloaded Moves . | . . . . . . . . . . . . . . . . . . . . Propulsion Burnouts . | . . . . . . . . . . . . . . . . . . . . Robots Hopped 42 | . . . . . . . . . 27 10 5 . . . . . . . . Cave-ins Triggered 4 | . . . . . . . . . 1 . 1 . . . . . 1 1 . Exploration Rate (%) 57 | 4 23 82 68 19 27 80 15 47 77 96 84 58 99 57 77 87 43 45 52 Regions Visited 19 Branch Regions 4 Pre-discovered Areas 1 | . . 1 . . . . . . . . . . . . . . . . . Known Exits Taken 4 | . . . . . 1 . 1 . . . . . . 1 . . 1 . . Unknown Exits Taken 7 | 1 1 1 1 1 . . . . . . 1 . . . . . . 1 . Scrap Searched 3 | . . 3 . . . . . . . . . . . . . . . . . Spaces Dug 296 | . . 5 . . . . . . 35 . 51 43 . 22 58 17 22 39 4 Terrain Destroyed 903 | . . 6 . . 2 152 . 13 37 . 85 69 . 139 149 124 74 48 5 Melee 258 | . . . . . . . . . 35 . 45 43 . 12 58 . 22 39 4 Projectile 51 | . . 6 . . . . . . 1 . 6 4 . 26 4 . 2 2 . AOE 580 | . . . . . 2 152 . 13 . . 34 22 . 95 83 124 48 7 . Terrain Rammed . | . . . . . . . . . . . . . . . . . . . . Walls Destroyed . | . . . . . . . . . . . . . . . . . . . . Machines Disabled . | . . . . . . . . . . . . . . . . . . . . Actions | -11 -10 -10 -10 -9 -8 -8 -8 -8 -7 -7 -7 -6 -6 -6 -5 -5 -5 -4 -4 --------- Run | Scr Mat Min Exi Min Mat Gar Mat Gar Fac Was Fac Fac Was Fac Fac Was Fac Fac Ext Total 37016 | 54 111 593 289 62 335 1005 130 560 5517 897 6311 4429 308 5713 5377 323 2102 1858 1042 Wait 3379 | 1 8 30 . . 19 59 10 75 400 109 535 415 29 565 481 25 252 329 37 Move 30572 | 44 83 464 279 62 262 842 114 418 4781 634 5419 3604 256 4660 4556 258 1658 1396 782 Hop 35 | . . . . . . . . . 25 6 4 . . . . . . . . Pick Up 150 | 3 5 5 3 . 4 7 . 4 17 1 17 15 3 18 20 3 13 10 2 Fast Attach 146 | 5 1 6 . . 5 3 1 8 15 2 17 7 1 25 18 1 6 15 10 Attach 101 | 1 . 1 . . 2 6 . 4 5 1 6 6 3 25 18 2 11 9 1 Detach 39 | . . . . . . . . . 2 . 1 2 1 22 7 1 1 2 . Swap 196 | . . 6 1 . . 8 . 5 25 1 30 40 6 17 32 3 7 12 3 Drop 134 | . 1 4 6 . 3 . 1 4 17 3 23 16 . 21 12 3 6 6 8 Fire 1297 | . 13 61 . . 40 48 4 36 143 140 70 60 9 321 134 27 87 19 85 Melee 561 | . . . . . . 12 . 2 77 . 111 114 . 38 96 . 38 60 13 Ram 8 | . . . . . . . . . . . . . . 1 . . 5 . 2 Kick 1 | . . 1 . . . . . . . . . . . . . . . . . Crush . | . . . . . . . . . . . . . . . . . . . . Escape Stasis 163 | . . . . . . 20 . 4 9 . 13 39 . . . . 13 . 65 Rewire 41 | . . . . . . . . . 1 . . . . . 1 . 5 . 34 Trap 193 | . . 15 . . . . . . . . 65 111 . . 2 . . . . Miscellaneous . | . . . . . . . . . . . . . . . . . . . . Route ------- -11/Scrapyard -10/Materials -10/Mines (discovered 2 exits: [*Mat] / *Exi) -10/Exiles -9/Mines -8/Materials (discovered 2 exits: *Fac / Gar) -8/Garrison (discovered 3 exits: *Mat x3) -8/Materials -8/Garrison -7/Factory (discovered 4 exits: *Fac x2 / *Low x2) -7/Waste -7/Factory (discovered 6 exits: *Fac x4 / *Low x2) -6/Factory (discovered 5 exits: *Fac x4 / *Low) -6/Waste -6/Factory (discovered 4 exits: *Fac x2 / *Low x2) -5/Factory (discovered 6 exits: *Fac x4 / Upp x2) -5/Waste -5/Factory -4/Factory (discovered 4 exits: [*Res x2] / *Upp / *Ext) -4/Extension History --------- Turn | Location | Event 12 | -11/Scrapyard | Discovered new exit (range 14) 79 | -11/Scrapyard | Entered Materials 228 | -10/Materials | Discovered new exit (range 12) 266 | -10/Materials | Entered Mines 273 | -10/Mines | Met a Derelict who couldn't figure out how to use a Trap Extractor 275 | -10/Mines | Met a Derelict bent on vengeance 339 | -10/Mines | Build established: Mutant 499 | -10/Mines | Excavation squad dispatched 499 | -10/Mines | A large section of the Mines collapsed 722 | -10/Mines | Discovered new exit (range 9) 729 | -10/Mines | Learned Materials stockpile data 825 | -10/Mines | Learned location of Zion (-7) 1046 | -10/Mines | Deemed a non-threat by the Exiles lab entrance 1048 | -10/Mines | Discovered new exit (range 5) 1054 | -10/Mines | Entered Exiles 1075 | -10/Exiles | Build established: Scavenger-Mutant 1084 | -10/Exiles | Met 8R-AWN 1104 | -10/Exiles | Met EX-HEX 1140 | -10/Exiles | Met EX-BIN 1156 | -10/Exiles | Aligned with FarCom system 1158 | -10/Exiles | Given EX-Vault access code 1189 | -10/Exiles | Opened EX-Vault 1197 | -10/Exiles | Found Flying Fortress v7 1222 | -10/Exiles | Warned to stay clear of 0b10 Research branches 1255 | -10/Exiles | Met EX-DEC 1387 | -10/Exiles | Discovered new exit (range 12) 1399 | -10/Exiles | Left Exiles lab with Flying Fortress v7 1399 | -10/Exiles | Entered Mines 1470 | -9/Mines | Discovered new exit (range 5) 1474 | -9/Mines | Entered Materials 1474 | -8/Materials | Evolved 4 slots: Propulsion x2, Utility x2 1756 | -8/Materials | Discovered new exit (range 10) 1979 | -8/Materials | Identified exit to Garrison 1979 | -8/Materials | Entered Garrison 2018 | -8/Garrison | Triggered checkpoint 2173 | -8/Garrison | Discovered new exit (range 11) 2281 | -8/Garrison | Triggered checkpoint 2382 | -8/Garrison | Discovered new exit (range 8) 2389 | -8/Garrison | Identified exit to Materials 2412 | -8/Garrison | Triggered checkpoint 2513 | -8/Garrison | Garrison Relay disabled 2634 | -8/Garrison | Triggered checkpoint 2918 | -8/Garrison | Phase Generator disabled 3154 | -8/Garrison | Discovered exit to Materials (range 9) 3176 | -8/Garrison | Installed Relay Interface Framework 3198 | -8/Garrison | Triggered checkpoint 3241 | -8/Garrison | Garrison Relay disabled 3278 | -8/Garrison | Entered Materials 3439 | -8/Materials | Identified exit to Garrison 3439 | -8/Materials | Entered Garrison 3445 | -8/Garrison | Expanded RIF knowledge: Hotswap 3482 | -8/Garrison | Triggered checkpoint 3555 | -8/Garrison | Destroyed 7 combat bots 3700 | -8/Garrison | Garrison Relay disabled 3708 | -8/Garrison | Triggered checkpoint 3866 | -8/Garrison | Triggered checkpoint 3953 | -8/Garrison | Triggered checkpoint 4028 | -8/Garrison | Triggered checkpoint 4070 | -8/Garrison | Garrison Relay disabled 4112 | -8/Garrison | Discovered new exit (range 10) 4123 | -8/Garrison | Identified exit to Factory 4150 | -8/Garrison | Entered Factory 4150 | -7/Factory | Evolved 2 slots: Utility x2 4807 | -7/Factory | Garrison activated, responded to threat 4963 | -7/Factory | Garrison activated, responded to threat 5089 | -7/Factory | Build established: Bothacker-Mutant 5372 | -7/Factory | Repaired Imp. Medium Armor Plating? 5453 | -7/Factory | Crushed by falling debris 5453 | -7/Factory | System corruption reached 10% 5847 | -7/Factory | Discovered new exit (range 7) 6193 | -7/Factory | Fabricated Adv. Hacking Suite? 6334 | -7/Factory | Discovered new exit (range 6) 6376 | -7/Factory | Identified exit to Lower Caves 6438 | -7/Factory | Build established: Mutant 6750 | -7/Factory | Build established: Hacker-Mutant 6763 | -7/Factory | Allied Derelicts emerged from ambush trap array 6873 | -7/Factory | Fabricated Adv. Hacking Suite? 7019 | -7/Factory | Fabricated Adv. Hacking Suite? 7485 | -7/Factory | Fabricated Adv. Hacking Suite? 7735 | -7/Factory | Fabricated P-60 Hacker? 7824 | -7/Factory | Central database locked down 7895 | -7/Factory | Hacker 4a assimilated hostile W-25 Informer 7926 | -7/Factory | Sucked down chute 7926 | -7/Factory | Entered Waste 7927 | -7/Waste | Met a frightened Derelict 7942 | -7/Waste | Spotted C-40 Crusher 7980 | -7/Waste | 3 allies followed down the chute 8022 | -7/Waste | Spotted C-40 Crusher 8032 | -7/Waste | Hacker 4d assimilated hostile C-40 Crusher 8035 | -7/Waste | Spotted C-40 Crusher 8035 | -7/Waste | Spotted C-40 Crusher 8037 | -7/Waste | Spotted C-40 Crusher 8063 | -7/Waste | Hacker 4d assimilated hostile C-40 Crusher 8073 | -7/Waste | Spotted C-40 Crusher 8108 | -7/Waste | Allies destroyed C-40 Crusher 8268 | -7/Waste | Hacker 4d assimilated hostile C-40 Crusher 8443 | -7/Waste | Allies destroyed C-40 Crusher 8461 | -7/Waste | Warlord forces began an assault 8550 | -7/Waste | Discovered new exit (range 12) 8645 | -7/Waste | Entered Factory 8645 | -7/Factory | Accompanied by 21 allies 8791 | -7/Factory | Discovered new exit (range 16) 9039 | -7/Factory | Discovered new exit (range 6) 9062 | -7/Factory | Discovered exit to Lower Caves (range 8) 9306 | -7/Factory | Repaired Broken Force Lance 9365 | -7/Factory | Discovered new exit (range 9) 9602 | -7/Factory | Repaired Antimatter Reactor 9810 | -7/Factory | Build established: Wizard-Mutant 9847 | -7/Factory | Fabricated Adv. System Shield (x1) 10310 | -7/Factory | Fabricated Adv. EM Disruption Field (x1) 10413 | -7/Factory | Fabricated Imp. Dynamic Insulation System (x2) 10962 | -7/Factory | Discovered new exit (range 13) 10995 | -7/Factory | Fabricated A-02 Transporter (x1) 11087 | -7/Factory | Discovered exit to Lower Caves (range 5) 11292 | -7/Factory | Hacking Suite fried by hacking feedback 11296 | -7/Factory | Fabricated O-24 Administrator (x1) 11319 | -7/Factory | Crushed by falling debris 12315 | -7/Factory | Fabricated Adv. Plasma Cannon (x2) 12388 | -7/Factory | Fabricated P-60 Hacker (x2) 12775 | -7/Factory | Entered another Factory area 12775 | -6/Factory | Accompanied by 5 allies 12775 | -6/Factory | Evolved 2 slots: Utility x2 12971 | -6/Factory | Repaired Prc. Grenade Launcher? 13681 | -6/Factory | Noticed a derelict Sapper rigging charges 13895 | -6/Factory | Repaired Gravmag Array 13914 | -6/Factory | Repaired Prc. Assault Rifle 14087 | -6/Factory | Fabricated Adv. Hacking Suite (x1) 14361 | -6/Factory | Fabricated O-24 Administrator (x1) 14475 | -6/Factory | Adv. Hacking Suite fried by hacking feedback 14575 | -6/Factory | Discovered new exit (range 6) 14819 | -6/Factory | Allied Derelicts emerged from ambush trap array 14827 | -6/Factory | Identified exit to Factory 14905 | -6/Factory | Fabricated Imp. Dynamic Insulation System (x2) 15920 | -6/Factory | Manually triggered Chute Trap 15920 | -6/Factory | Sucked down chute 15920 | -6/Factory | Entered Waste 15924 | -6/Waste | Spotted C-40 Crusher 15935 | -6/Waste | EMP discharged 15949 | -6/Waste | Spotted C-40 Crusher 15970 | -6/Waste | Spotted C-40 Crusher 15977 | -6/Waste | Spotted C-40 Crusher 15978 | -6/Waste | Spotted C-40 Crusher 16024 | -6/Waste | Spotted C-40 Crusher 16035 | -6/Waste | EMP discharged 16038 | -6/Waste | Crushed by Compactor (1 part destroyed, 2 dropped) 16085 | -6/Waste | Discovered new exit (range 13) 16128 | -6/Waste | Entered Factory 16220 | -6/Factory | Build established: Hacker-Mutant 16432 | -6/Factory | Discovered new exit (range 39) 16458 | -6/Factory | Discovered new exit (range 39) 16588 | -6/Factory | Discovered exit to Factory (range 14) 16624 | -6/Factory | Build established: Wizard-Mutant 16660 | -6/Factory | Repaired Gravmag Array? 16889 | -6/Factory | Identified exit to Lower Caves 16948 | -6/Factory | Core integrity fell below 50% 17095 | -6/Factory | Fabricated Adv. System Shield? 17173 | -6/Factory | Repaired Adv. Plasma Cannon 17733 | -6/Factory | Fabricated Force Lance? 18004 | -6/Factory | Fabricated Imp. Arc Projector (x1) 18030 | -6/Factory | Discovered exit to Factory (range 20) 18456 | -6/Factory | Build established: Hacker-Mutant 18477 | -6/Factory | Adv. System Shield fried by hacking feedback 18572 | -6/Factory | Fabricated Adv. Hacking Suite (x1) 18653 | -6/Factory | Cargo convoy interrupted 18750 | -6/Factory | Spotted B-75 Beast 18975 | -6/Factory | Repaired Coil Gun 19334 | -6/Factory | Core integrity fell below 20% 19651 | -6/Factory | Lost 3 parts (3u) 20131 | -6/Factory | Destroyed B-75 Beast 20215 | -6/Factory | Fabricated Adv. Hacking Suite (x1) 20276 | -6/Factory | Fabricated Adv. System Shield? 20372 | -6/Factory | Entered another Factory area 20372 | -5/Factory | Evolved 2 slots: Propulsion x1, Utility x1 20631 | -5/Factory | Discovered new exit (range 11) 20725 | -5/Factory | Build established: Wizard-Scout 20855 | -5/Factory | Repaired Coil Gun? 20894 | -5/Factory | Discovered new exit (range 18) 20954 | -5/Factory | Fabricated P-70 Sage? 21286 | -5/Factory | Destroyed 10 combat bots 21523 | -5/Factory | Build established: Wizard-Mutant 21818 | -5/Factory | Discovered new exit (range 6) 22012 | -5/Factory | Repaired Mic. Nuclear Core 22150 | -5/Factory | Identified exit to Factory 22150 | -5/Factory | Identified exit to Upper Caves 22578 | -5/Factory | Garrison activated, responded to threat 22656 | -5/Factory | Lost 6 parts (3n1u2w) 22709 | -5/Factory | Destroyed 7 combat bots 23360 | -5/Factory | Fabricated P-70 Sage? 23561 | -5/Factory | Lost 6 parts (1p3n1u1w) 23789 | -5/Factory | Fabricated P-70 Sage? 23809 | -5/Factory | Lost 3 parts (1p2n) 24034 | -5/Factory | Fabricated P-70 Sage? 24107 | -5/Factory | Sucked down chute 24107 | -5/Factory | Entered Waste 24122 | -5/Waste | EMP discharged 24133 | -5/Waste | Found Unknown Piercing Weapon 24133 | -5/Waste | Identified Enh. Force Lance 24145 | -5/Waste | Spotted C-40 Crusher 24161 | -5/Waste | Spotted C-40 Crusher 24161 | -5/Waste | Spotted C-40 Crusher 24219 | -5/Waste | Spotted C-40 Crusher 24222 | -5/Waste | EMP discharged 24226 | -5/Waste | Spotted C-40 Crusher 24257 | -5/Waste | Destroyed C-40 Crusher 24282 | -5/Waste | Spotted C-40 Crusher 24295 | -5/Waste | Discovered new exit (range 16) 24322 | -5/Waste | EMP discharged 24322 | -5/Waste | System corruption reached 10% 24329 | -5/Waste | Entered Factory 24762 | -5/Factory | Crushed by falling debris 24762 | -5/Factory | System corruption reached 30% 24784 | -5/Factory | Core integrity fell below 50% 24809 | -5/Factory | Lost 8 parts (3n3u2w) 24952 | -5/Factory | Lost 3 parts (1u2w) 25522 | -5/Factory | Repaired Broken Hyp. Railgun? 25605 | -5/Factory | Build established: Hacker-Mutant 25895 | -5/Factory | Discovered exit to Factory (range 18) 25957 | -5/Factory | Build established: Hacker-Scout 26040 | -5/Factory | Core integrity fell below 20% 26041 | -5/Factory | Entered another Factory area 26041 | -4/Factory | Evolved 2 slots: Power x1, Propulsion x1 26149 | -4/Factory | Lost 3 parts (1p2n) 26320 | -4/Factory | Found Quantum Capacitor 26456 | -4/Factory | Fabricated Adv. System Shield? 26558 | -4/Factory | Discovered new exit (range 6) 26593 | -4/Factory | Identified exit to Upper Caves 26666 | -4/Factory | Found Unknown Device 26738 | -4/Factory | Crushed by falling debris 26837 | -4/Factory | Fabricated R-10 Processor? 26894 | -4/Factory | P-70 Sage assimilated allied Processor 7a 26987 | -4/Factory | Lost 8 parts (1p2n3u2w) 27116 | -4/Factory | Discovered new exit (range 15) 27328 | -4/Factory | Discovered new exit (range 15) 27445 | -4/Factory | Discovered new exit (range 5) 27452 | -4/Factory | Entered Extension 27539 | -4/Extension | Rescued a captive Derelict 27544 | -4/Extension | Rescued a captive Derelict 27579 | -4/Extension | Rescued a captive Derelict 27579 | -4/Extension | Rescued a captive Derelict 27730 | -4/Extension | Build established: Scavenger-Assassin 27843 | -4/Extension | Core integrity fell below 50% 28098 | -4/Extension | Spotted B-86 Titan 28452 | -4/Extension | Disrupted transfer network 28514 | -4/Extension | Lost 3 parts (1n2u) 28622 | -4/Extension | Lost 6 parts (2p2n1u1w) 28635 | -4/Extension | Allies destroyed B-86 Titan 28679 | -4/Extension | Spotted B-86 Titan 28680 | -4/Extension | Core integrity fell below 20% 28683 | -4/Extension | Destroyed by B-86 Titan with Matter Neutralizer Last Messages --------------- 28671_ Acquired 3 matter. 28671_ Acquired 69 matter. 28672_ Acquired 3 matter. 28672_ Adv. Heat Sink destroyed. 28672_ K-01 Serf destroyed. 28673_ Acquired 62 matter. 28674_ Penetrated by Slug. 28674_ Adv. Signal Interpreter destroyed. 28674_ Slug penetrates Wall. 28674_ Acquired 37 matter. 28676_ Slug penetrates K-01 Serf. 28676_ Penetrated by Slug. 28676_ Acquired Plasma Rifle. 28677_ Penetrated by Slug. 28680_ Critical hit (Destroy). 28680_ Cmb. Airjet destroyed. 28681_ Imp. Antigrav System destroyed. 28682_ Slug penetrates Wall. 28682_ Slug penetrates Door Terminal. 28682_ Door Terminal disabled. Map ----- +----------------------------------------------------+ | #??#???#?#??##???# ### #???????????????????????? | | ??????###??????#?# ###%#????#??? ?????????????? | | #??????##??###???# #?# #??#?????? ?????????????? | | ??#?????#?#???#??#####?# #?#?????#???????????????? | | ?????????###??#????##??# #?????#??? ?????????????? | | #????#?#??????#????????# #?#?????? ?#????????????? | | ??#???????#????#???#???# #???????????????????????? | | ?#???????#??#??##??????# ##??????????????????????? | | ???#??#???##?#?????#???#%#????????? ?????????????? | | ???#???#?#?????????????# ##??????????????????????? | | ??????????????#?#??????# #???????????????????????? | | ?#??#??#??????????#??### #??#####????????????????? | | ?????????#??????????#### ### ## ##???????????????? | | ????##??????????????## " " ""??????????????? | | #????#??????#??????#?# " " " "?#??????????? | | ????????#????????#???# gR%R ????????????? | | ##???????#?##?#??#???# gg R ???????????? | | "##################### R ???????????? | | %% ??????????? | | %%% h % ??????????? | | % *%!%=%[% %*=h=%% ??????????? | | % !!=%!| !%% [=%!!*== % ?????????? | | !%%=%=!% %!!%%!%=! u R ?????????? | | ###################### % BB #??????????? | | #???????????????????## BB #??????????? | | #?????????????????###; @ #??????????? | | #???????????????????## #??????????? | | ????????????#????????# #??????????? | | ??#??????????????????###### #"""#######??????????? | | ?#???#?????????????????????##????????????????????? | | ??#??????????????????#???????????????????????????? | | | | | | | | | | | | | | | | | | | | | | | | | | | | | | | | | | | | | | | +----------------------------------------------------+ Best States ------------- Heat Dissipation 76 Coolant Potential 100 Energy Generation 31 Energy Capacity 365 Matter Stores 300 Matter Capacity 300 Sight Range 18 Terrain Scan Range 20 Terrain Scan Density 210 ECM Strength 1 Jamming Range 14 EM Shielding 9 Corruption Block 8 Armor Coverage 300 Resistance: TH 10 Resistance: EM 50 Point Defense Rating 80 Phase Shifting 10 Evasion (%) 60 Targeting Accuracy 8 Target Analysis 6 Armor Integrity Analysis 40 Recoil Reduction 6 Offensive Hacking 52 Defensive Hacking 38 Relay Coupler Types 2 Relay Coupler Value 23 Trap Extractor Capacity 6 Item Schematics ----------------- Lrg. Storage Unit | -10/Materials | Hacked Corruption Screen | -7/Factory | Hacked Adv. Hacking Suite | -7/Factory | Hacked Dynamic Insulation System | -7/Factory | Hacked Arc Projector | -7/Factory | Hacked Imp. Datajack | -7/Factory | Hacked Imp. System Restoration Module | -7/Factory | Hacked Adv. System Shield | -7/Factory | Hacked Imp. Dynamic Insulation System | -7/Factory | Hacked Cmb. Gravmag System | -7/Factory | Hacked Adv. EM Disruption Field | -7/Factory | Scanalyzed Mic. Nuclear Core | -7/Factory | Hacked Remote Datajack | -7/Factory | Hacked Force Lance | -7/Factory | Scanalyzed Prc. Grenade Launcher | -7/Factory | Scanalyzed Imp. Antigrav System | -6/Factory | Hacked Imp. Arc Projector | -6/Factory | Hacked Gravmag Array | -6/Factory | Hacked Imp. Trap Scanner | -6/Factory | Scanalyzed System Restoration Module | -6/Factory | Scanalyzed Adv. Plasma Cannon | -6/Factory | Scanalyzed Prc. Assault Rifle | -6/Factory | Scanalyzed Lyr. Light Armor Plating | -6/Factory | Scanalyzed Adv. Target Analyzer | -6/Factory | Hacked Proton Cannon | -6/Factory | Hacked Adv. Thermal Shield | -6/Factory | Hacked Magnetic Acceleration Cannon | -6/Factory | Hacked Hardcell Cannon | -6/Factory | Hacked Quantum Capacitor | -6/Factory | Hacked Imp. Transmission Jammer | -6/Factory | Hacked Antimatter Reactor | -6/Factory | Hacked Adv. System Restoration Module | -6/Factory | Hacked Flexi-carbon Leg | -6/Factory | Hacked Adv. Shield Generator | -6/Factory | Hacked Hyp. Coil Gun | -5/Factory | Hacked Exp. Propulsion Shielding | -5/Factory | Hacked Hyp. Gauss Rifle | -5/Factory | Scanalyzed Imp. Gravmag System | -5/Factory | Scanalyzed Prc. Rocket Launcher | -5/Factory | Scanalyzed Adv. Cryofiber Web | -5/Factory | Hacked Point Defense Array | -5/Factory | Hacked Adv. Datajack | -5/Factory | Hacked Antigrav System | -5/Factory | Hacked Gyrokinetic Inverter | -5/Factory | Hacked Adv. Terrain Scanner | -5/Factory | Scanalyzed Hvy. Phase Cannon | -5/Factory | Scanalyzed Hvy. Shock Bomb Launcher | -5/Factory | Scanalyzed Hyp. Railgun | -5/Factory | Hacked Mic. Fission Core | -5/Factory | Hacked Lgt. Neutrino Core | -5/Factory | Hacked Enh. Nova Cannon | -4/Factory | Hacked Quantum Reactor | -4/Factory | Hacked Robot Schematics ------------------ P-60 Hacker | -7/Factory | Hacked A-02 Transporter | -7/Factory | Hacked M-13 Machinist | -7/Factory | Hacked I-36 Angel | -7/Factory | Hacked Y-45 Defender | -7/Factory | Hacked O-24 Administrator | -7/Factory | Hacked A-15 Conveyor | -7/Factory | Hacked D-53 Grenadier | -7/Factory | Hacked I-25 Savior | -6/Factory | Hacked H-66 Slayer | -6/Factory | Hacked P-70 Sage | -5/Factory | Hacked Fabricated ------------ Adv. Hacking Suite | x1 | -7/Factory Adv. Hacking Suite | x1 | -7/Factory Adv. Hacking Suite | x1 | -7/Factory Adv. Hacking Suite | x1 | -7/Factory P-60 Hacker | x2 | -7/Factory Adv. System Shield | x1 | -7/Factory Adv. EM Disruption Field | x1 | -7/Factory | Preloaded Imp. Dynamic Insulation System | x2 | -7/Factory A-02 Transporter | x1 | -7/Factory O-24 Administrator | x1 | -7/Factory Adv. Plasma Cannon | x2 | -7/Factory | Preloaded P-60 Hacker | x2 | -7/Factory Adv. Hacking Suite | x1 | -6/Factory O-24 Administrator | x1 | -6/Factory Imp. Dynamic Insulation System | x2 | -6/Factory Adv. System Shield | x1 | -6/Factory Force Lance | x1 | -6/Factory Imp. Arc Projector | x1 | -6/Factory Adv. Hacking Suite | x1 | -6/Factory Adv. Hacking Suite | x1 | -6/Factory Adv. System Shield | x1 | -6/Factory P-70 Sage | x2 | -5/Factory P-70 Sage | x2 | -5/Factory P-70 Sage | x2 | -5/Factory P-70 Sage | x2 | -5/Factory Adv. System Shield | x1 | -4/Factory R-10 Processor | x1 | -4/Factory | Preloaded Alien Tech Used ----------------- None Achievements -------------- None Challenges ------------ None Game ------ Seed ExperimentalMicrowarpSpear Manual? 0 Play Time 08:31:33 Cumulative 186.5 hours Start 2022.09.28 @ 21:00:06 End 2022.09.29 @ 21:11:03 Sessions 3 Manual Loads 0 Difficulty Rogue Special Mode None Game No. 136 Rogue 133 Adventurer 3 Explorer 0 Win Type - Total 1 Types 1/0/0/0/0/0/0/0/0 Lore% 58 Gallery% 61 Achievement% 50 Wizard Run 0 Options --------- ASCII 0 Keyboard 0 Movement Numpad Keybinds 0 Fullscreen 1 Font 18/SmallcapsGlow Map View 76x50 Tactical HUD 1 Map Filters NONE Filters NONE Steam 1 RUN: 9675c263-5c95-425d-981e-e149306c5215